bitfinex-derivatives/quotes_SOLF0:USTF0_20250829
["timestamp","ask_amount","ask_price","bid_price","bid_amount"]
[1756479520176,7.73,207.86,207.7,5.28768124]
[1756479520372,75.34,207.95,207.69,5.28768124]
[1756479520373,7.73,207.82,207.69,5.28768124]
[1756479520578,7.73,207.78,207.63,5.28768124]
[1756479521671,7.73,207.78,207.62,5.33768124]
[1756479522075,7.73,207.78,207.62,0.05]
[1756479522578,11.30566081,207.75,207.6,5.28768124]
[1756479522778,7.73,207.74,207.59,5.28768124]
[1756479523573,11.30566081,207.73,207.58,5.28768124]
[1756479523780,7.73,207.72,207.56,5.33768124]
[1756479524176,12.0625,207.72,207.6,4.3348]
[1756479524572,7.73,207.72,207.57,67.4416]
[1756479524771,7.73,207.72,207.58,16.59334205]
[1756479524972,7.73,207.72,207.58,11.30566081]
[1756479525170,54.6,207.76,207.57,5.28768124]
[1756479525478,7.73,207.71,207.55,5.28768124]
[1756479525675,11.30566081,207.72,207.53,177.8405905]
[1756479526074,7.73,207.71,207.53,177.8405905]
[1756479526275,14.42,207.71,207.48,5.28768124]
[1756479526482,7.73,207.63,207.45,5.33768124]
[1756479526677,7.73,207.63,207.46,5.28768124]
[1756479527080,7.73,207.63,207.48,0.05]
[1756479527279,7.73,207.63,207.51,11.30566081]
[1756479527484,7.73,207.63,207.52,0.05]
[1756479527982,132.32566081,207.7,207.52,0.05]
[1756479528179,7.73,207.69,207.53,0.05]
[1756479528384,7.73,207.69,207.55,0.05]
[1756479529886,19.03566081,207.69,207.55,0.05]
[1756479530579,7.73,207.68,207.52,11.30566081]
[1756479530874,7.73,207.68,207.48,186.51500216]
[1756479531082,11.30566081,207.61,207.46,0.05]
[1756479531280,7.73,207.6,207.46,0.05]
[1756479532176,7.73,207.6,207.4,0.83863505]
[1756479532177,7.73,207.55,207.4,0.83863505]
[1756479532378,7.73,207.5,207.41,4.3388]
[1756479532584,7.73,207.5,207.38,67.503]
[1756479532585,7.73,207.5,207.4,67.4963]
[1756479533187,7.73,207.5,207.43,4.3384]
[1756479533584,7.73,207.5,207.38,67.503]
[1756479534282,7.73,207.5,207.29,13.97018124]
[1756479534283,7.73,207.5,207.3,0.88]
[1756479534487,26.56,207.53,207.3,0.88]
[1756479534488,7.73,207.52,207.3,0.88]
[1756479534687,7.73,207.47,207.3,0.88]
[1756479535084,7.73,207.43,207.23,5.28768124]
[1756479535285,7.73,207.43,207.24,131.3]
[1756479535583,7.73,207.43,207.25,12.18566081]
[1756479535786,7.73,207.43,207.21,0.83937336]
[1756479535787,134.9719214,207.53,207.21,0.83937336]
[1756479536084,11.30566081,207.33,207.2,0.88]
[1756479536383,7.73,207.32,207.15,80.16]
[1756479536584,7.73,207.32,207.14,132.52]
[1756479537183,7.73,207.32,207.15,131.66]
[1756479537488,7.73,207.32,207.16,0.88]
[1756479537991,7.73,207.32,207.16,132.44]
[1756479538186,7.73,207.32,207.16,0.88]
[1756479540382,7.73,207.32,207.17,0.88]
[1756479540889,7.73,207.32,207.19,67.5657]
[1756479541084,7.73,207.32,207.2,67.5618]
[1756479541281,7.73,207.32,207.22,67.5553]
[1756479541478,0.83975821,207.36,207.26,4.3418]
[1756479541682,0.83975821,207.36,207.25,67.5444]
[1756479541683,78.80956081,207.38,207.18,0.88]
[1756479541885,7.73,207.33,207.19,67.5652]
[1756479542090,7.73,207.33,207.21,4.3429]
[1756479542683,7.73,207.33,207.23,67.5521]
[1756479543090,7.73,207.33,207.25,67.5456]
[1756479543283,7.73,207.33,207.23,67.5498]
[1756479543586,7.73,207.33,207.25,67.5456]
[1756479543992,7.73,207.38,207.29,67.5327]
[1756479544388,7.73,207.43,207.29,67.5327]
[1756479544589,7.73,207.43,207.29,200.0127]
[1756479544785,131.62,207.45,207.31,0.88]
[1756479545194,139.35,207.45,207.31,0.88]
[1756479545491,11.30566081,207.44,207.31,0.88]
[1756479545688,7.73,207.43,207.31,0.88]
[1756479546593,7.73,207.43,207.25,0.9]
[1756479546594,7.82,207.43,207.25,0.9]
[1756479546793,11.30566081,207.4,207.25,0.9]
[1756479547093,7.82,207.35,207.2,0.9]
[1756479548992,7.82,207.35,207.21,11.30566081]
[1756479549296,7.82,207.35,207.22,0.9]
[1756479549797,7.82,207.36,207.16,0.9]
[1756479550092,7.82,207.36,207.16,12.20566081]
[1756479550287,7.82,207.35,207.16,0.9]
[1756479550491,7.82,207.35,207.16,132.94]
[1756479550686,7.82,207.36,207.16,0.9]
[1756479551691,7.82,207.36,207.2,67.5613]
[1756479551897,4.3401,207.35,207.23,4.3425]
[1756479552091,67.5104,207.36,207.18,67.5679]
[1756479552291,7.82,207.34,207.17,67.5693]
[1756479552495,7.82,207.28,207.17,4.3437]
[1756479552691,7.82,207.28,207.16,68.4747]
[1756479552898,7.82,207.28,207.16,0.9]
[1756479554101,7.82,207.28,207.1,0.9]
[1756479556305,7.82,207.25,207.1,0.9]
[1756479557104,19.12566081,207.25,207.1,0.9]
[1756479557603,7.82,207.25,207.1,0.9]
[1756479557797,7.82,207.24,207.07,0.91]
[1756479558407,7.82,207.24,207.09,11.30566081]
[1756479558703,7.82,207.24,207.1,0.91]
[1756479559201,7.82,207.24,207.07,0.91]
[1756479560107,7.82,207.16,206.99,0.84022454]
[1756479560296,7.82,207.16,206.99,0.91]
[1756479560897,7.82,207.16,207.0,11.30566081]
[1756479561096,7.82,207.16,207.01,0.91]
[1756479561296,7.82,207.16,207.08,4.3457]
[1756479561501,7.82,207.16,207.06,67.606]
[1756479562104,7.82,207.16,207.08,67.6]
[1756479562303,7.82,207.16,207.05,0.91]
[1756479562607,7.82,207.16,207.1,67.5947]
[1756479562803,7.82,207.16,207.12,4.3449]
[1756479563205,7.82,207.16,207.06,67.6066]
[1756479563403,7.82,207.16,207.05,0.91]
[1756479566107,15.25936324,207.44,207.11,0.91]
[1756479566108,7.82,207.23,207.11,0.91]
[1756479566310,7.82,207.31,207.14,11.30566081]
[1756479566509,130.46,207.32,207.01,0.91]
[1756479566710,7.82,207.23,207.02,11.30566081]
[1756479567015,11.30566081,207.24,207.01,12.21566081]
[1756479567016,12.2,207.22,207.01,12.21566081]
[1756479567216,7.82,207.21,207.01,0.91]
[1756479567516,7.82,207.19,207.01,0.91]
[1756479567706,7.82,207.19,207.06,0.91]
[1756479569011,7.82,207.27,207.06,0.91]
[1756479569210,7.82,207.27,207.1,0.91]
[1756479569418,7.82,207.27,207.11,14.84]
[1756479569813,7.82,207.27,207.19,67.565]
[1756479570214,7.82,207.27,207.18,67.5685]
[1756479570613,7.82,207.27,207.19,4.3432]
[1756479571211,67.5459,207.25,207.07,187.06415324]
[1756479571411,7.82,207.22,207.07,187.06415324]
[1756479571607,7.82,207.22,207.06,5.26]
[1756479571608,7.82,207.21,207.03,67.6176]
[1756479571921,7.82,207.16,207.01,67.6233]
[1756479572416,7.82,207.16,207.05,67.6101]
[1756479572809,7.82,207.16,207.04,67.6132]
[1756479573015,7.82,207.26,207.05,5.26]
[1756479573619,18.02904797,207.27,207.05,5.26]
[1756479573820,7.82,207.26,207.06,96.78]
[1756479574018,7.82,207.26,207.05,5.26]
[1756479574220,4.3428,207.23,207.05,5.26]
[1756479574420,7.82,207.22,207.05,5.26]
[1756479575322,7.82,207.19,207.05,5.26]
[1756479578738,12.1636,207.19,207.05,5.26]
[1756479579033,7.38,207.23,207.01,103.2]
[1756479579229,7.38,207.23,207.01,133.12]
[1756479579430,7.38,207.16,207.01,133.12]
[1756479579836,7.38,207.16,206.99,23.29904797]
[1756479580233,7.38,207.16,207.06,4.3462]
[1756479580427,7.38,207.16,207.04,67.6136]
[1756479580627,7.38,207.16,207.05,67.611]
[1756479580837,7.38,207.16,207.1,4.3453]
[1756479581434,7.38,207.22,207.07,72.8738]
[1756479581735,67.5507,207.24,207.07,5.27]
[1756479581940,7.38,207.23,207.07,5.27]
[1756479582136,4.3431,207.21,207.1,4.3453]
[1756479582336,7.38,207.23,207.09,67.5979]
[1756479582538,7.38,207.23,207.1,67.5942]
[1756479582835,7.38,207.23,207.15,4.3441]
[1756479583040,7.38,207.23,207.08,132.74]
[1756479583240,7.38,207.23,207.11,67.5906]
[1756479583840,7.38,207.23,207.13,67.5827]
[1756479584037,7.38,207.23,207.12,5.27]
[1756479584241,7.38,207.23,207.17,4.3437]
[1756479584440,80.0,207.3,207.14,67.5794]
[1756479584637,7.38,207.29,207.13,67.5847]
[1756479584940,7.38,207.29,207.19,4.3432]
[1756479585140,7.38,207.29,207.17,5.27]
[1756479585342,7.38,207.36,207.2,67.5618]
[1756479585543,11.7199,207.36,207.24,4.3424]
[1756479586047,11.7199,207.36,207.21,72.8286]
[1756479586048,7.38,207.36,207.23,67.5511]
[1756479586233,7.38,207.36,207.24,67.5488]
[1756479586436,4.339,207.4,207.27,5.27]
[1756479586637,7.38,207.42,207.31,67.5248]
[1756479586839,7.38,207.42,207.31,72.7948]
[1756479587038,7.38,207.42,207.33,4.3403]
[1756479587338,108.96,207.48,207.34,67.5154]
[1756479587540,108.96,207.48,207.37,4.3395]
[1756479587734,108.96,207.48,207.34,67.5159]
[1756479587940,108.96,207.48,207.33,67.518]
[1756479588138,7.38,207.48,207.35,5.27]
[1756479588339,127.50704509,207.53,207.37,5.27]
[1756479588645,127.50704509,207.53,207.28,5.28768124]
[1756479588646,7.38,207.45,207.31,92.34]
[1756479588843,7.38,207.45,207.31,132.6]
[1756479589045,7.38,207.45,207.3,137.85]
[1756479589342,4.3372,207.49,207.3,132.58]
[1756479589544,7.38,207.53,207.36,5.27]
[1756479589942,7.38,207.53,207.37,11.2]
[1756479590144,7.38,207.53,207.38,5.27]
[1756479590345,7.38,207.58,207.41,5.27]
[1756479590548,7.38,207.58,207.45,18.02904797]
[1756479590845,7.38,207.58,207.41,5.27]
[1756479591046,7.38,207.58,207.42,10.98]
[1756479591243,4.3358,207.56,207.41,5.27]
[1756479591439,7.38,207.55,207.41,5.27]
[1756479591946,7.38,207.55,207.42,23.64]
[1756479592547,4.3347,207.61,207.46,5.27]
[1756479592844,7.38,207.6,207.47,133.6]
[1756479593047,0.83868558,207.65,207.5,5.27]
[1756479593239,7.38,207.66,207.51,115.16]
[1756479593440,7.38,207.66,207.52,129.28]
[1756479593649,7.38,207.66,207.53,5.27]
[1756479594045,7.38,207.66,207.53,138.37]
[1756479595045,7.38,207.66,207.53,138.79]
[1756479595250,0.8384027,207.69,207.54,138.69]
[1756479595251,7.38,207.69,207.54,138.69]
[1756479595447,7.38,207.67,207.54,138.69]
[1756479595649,7.38,207.67,207.49,23.29904797]
[1756479596041,7.38,207.67,207.51,5.27]
[1756479596449,4.3337,207.66,207.51,5.27]
[1756479596651,7.38,207.7,207.49,20.16]
[1756479596953,18.86737998,207.71,207.49,20.16]
[1756479597155,7.38,207.63,207.49,20.16]
[1756479597350,7.38,207.63,207.49,122.64]
[1756479597761,7.38,207.63,207.48,5.27]
[1756479597762,4.3346,207.62,207.48,5.27]
[1756479598152,4.3346,207.62,207.48,107.91]
[1756479598651,4.3346,207.62,207.48,5.27]
[1756479598854,7.38,207.61,207.48,5.27]
[1756479599051,21.8,207.65,207.4,5.27]
[1756479599351,7.38,207.6,207.4,5.27]
[1756479599559,7.38,207.55,207.4,5.27]
[1756479600148,7.38,207.55,207.39,18.02904797]
[1756479600454,7.38,207.55,207.34,323.96]
[1756479600455,7.38,207.55,207.41,5.27]
[1756479600955,7.38,207.55,207.43,5.27]
[1756479601148,7.38,207.61,207.43,5.27]
[1756479601352,7.38,207.61,207.44,7.7]
[1756479601549,7.38,207.61,207.46,5.27]
[1756479601754,7.38,207.61,207.48,5.27]
[1756479601949,94.22737998,207.71,207.48,5.27]
[1756479602149,7.38,207.7,207.49,5.27]
[1756479602357,4.3331,207.69,207.5,5.27]
[1756479602558,7.38,207.7,207.54,5.27]
[1756479602752,4.3338,207.66,207.54,5.27]
[1756479603053,7.38,207.65,207.44,5.27]
[1756479603353,8.2184431,207.65,207.51,5.27]
[1756479603653,25.40904797,207.64,207.46,5.27]
[1756479603857,11.7156,207.57,207.46,5.27]
[1756479604155,7.38,207.63,207.46,5.27]
[1756479604353,7.38,207.63,207.48,5.27]
[1756479605251,7.38,207.63,207.43,13.86]
[1756479605457,7.38,207.63,207.43,5.27]
[1756479606054,7.38,207.63,207.44,5.27]
[1756479606661,7.38,207.63,207.45,134.4]
[1756479606958,18.02904797,207.58,207.32,18.02904797]
[1756479607256,7.72,207.52,207.34,5.21]
[1756479607654,4.3369,207.51,207.34,5.21]
[1756479607854,18.02904797,207.53,207.34,5.21]
[1756479608051,7.72,207.52,207.34,5.21]
[1756479608252,4.3375,207.48,207.34,5.21]
[1756479608458,7.72,207.52,207.34,5.21]
[1756479609255,12.058,207.45,207.34,5.21]
[1756479609457,7.72,207.45,207.27,119.03]
[1756479609861,7.72,207.45,207.28,5.21]
[1756479610257,7.72,207.45,207.29,113.2]
[1756479610457,7.72,207.42,207.23,5.21]
[1756479610661,7.72,207.42,207.14,5.21]
[1756479610662,7.72,207.32,207.14,5.21]
[1756479611360,25.74904797,207.32,207.14,5.21]
[1756479611663,7.72,207.27,207.14,5.21]
[1756479612362,25.74904797,207.32,207.14,5.21]
[1756479612562,7.72,207.32,207.14,5.21]
[1756479613164,18.02904797,207.38,207.14,5.21]
[1756479613365,7.72,207.37,207.17,5.21]
[1756479613761,7.72,207.44,207.22,5.21]
[1756479613962,7.72,207.44,207.24,5.21]
[1756479614470,7.72,207.54,207.32,5.21]
[1756479614764,7.72,207.54,207.33,24.54]
[1756479615060,7.72,207.54,207.32,5.21]
[1756479615260,22.14,207.54,207.32,5.21]
[1756479615466,7.72,207.54,207.32,18.02904797]
[1756479615667,7.72,207.54,207.37,18.02904797]
[1756479615869,7.72,207.54,207.38,5.21]
[1756479616164,7.72,207.6,207.43,5.21]
[1756479616864,7.72,207.6,207.43,23.23904797]
[1756479617066,7.72,207.6,207.44,127.6]
[1756479617263,7.72,207.6,207.43,5.21]
[1756479617760,7.72,207.6,207.43,23.23904797]
[1756479618260,7.72,207.6,207.44,5.25]
[1756479618461,7.72,207.68,207.49,5.25]
[1756479619559,7.72,207.67,207.44,14.9]
[1756479619865,7.72,207.67,207.46,18.02904797]
[1756479620158,7.72,207.68,207.46,18.02904797]
[1756479620366,22.14,207.68,207.45,5.25]
[1756479620558,7.72,207.68,207.47,5.25]
[1756479620763,7.72,207.68,207.52,5.25]
[1756479620969,7.72,207.68,207.53,19.28]
[1756479621373,7.72,207.82,207.61,18.02904797]
[1756479621568,7.72,207.82,207.62,5.25]
[1756479621870,7.72,207.82,207.64,5.25]
[1756479622364,7.72,207.82,207.66,18.02904797]
[1756479622562,7.72,207.82,207.67,5.25]
[1756479622767,132.65360758,207.88,207.67,5.25]
[1756479623266,132.65360758,207.88,207.72,5.25]
[1756479623962,124.0,208.05,207.74,5.25]
[1756479623963,7.72,207.95,207.74,5.25]
[1756479624363,143.5,208.01,207.79,5.25]
[1756479624666,143.5,208.01,207.81,23.27904797]
[1756479625070,143.5,208.01,207.82,14.92]
[1756479626162,143.5,208.01,207.7,327.76450551]
[1756479626163,7.72,208.01,207.86,18.02904797]
[1756479626366,7.72,208.01,207.83,5.25]
[1756479626565,7.72,208.01,207.84,69.6]
[1756479626769,7.72,208.01,207.85,5.25]
[1756479627159,7.72,208.01,207.87,18.02904797]
[1756479627670,7.72,208.01,207.87,153.54904797]
[1756479628260,0.83689052,208.08,207.88,5.25]
[1756479628460,7.72,208.07,207.89,135.58]
[1756479628672,7.72,208.07,207.88,5.25]
[1756479628869,7.72,208.07,207.89,135.64]
[1756479629462,7.72,208.07,207.9,5.25]
[1756479629763,7.72,208.07,207.91,116.82]
[1756479629963,7.72,208.14,207.94,18.02904797]
[1756479630170,7.72,208.14,207.95,89.66]
[1756479630371,7.72,208.13,207.94,18.02904797]
[1756479630565,7.72,208.13,207.89,18.02904797]
[1756479630566,7.72,208.1,207.89,18.02904797]
[1756479630872,7.72,208.09,207.9,135.56]
[1756479631073,7.72,208.1,207.86,5.25]
[1756479631371,96.86,208.1,207.87,14.88]
[1756479631570,96.86,208.1,207.86,5.25]
[1756479631571,22.14,208.09,207.86,5.25]
[1756479631873,18.02904797,208.06,207.84,135.48]
[1756479632071,7.72,208.04,207.84,135.48]
[1756479632369,7.72,208.0,207.84,135.4]
[1756479632675,7.72,208.07,207.88,5.25]
[1756479632868,7.72,208.07,207.92,18.02904797]
[1756479633068,7.72,208.07,207.94,5.25]
[1756479633275,0.83667925,208.14,207.94,5.25]
[1756479633571,7.72,208.13,207.95,14.9]
[1756479634365,7.72,208.13,207.98,5.25]
[1756479635368,7.72,208.19,207.98,5.25]
[1756479635675,7.72,208.19,208.0,5.25]
[1756479635863,7.72,208.19,207.99,26.06]
[1756479635864,7.72,208.19,208.03,5.25]
[1756479636167,7.72,208.19,208.04,118.92]
[1756479636367,14.12,208.27,208.04,118.92]
[1756479636368,7.72,208.27,208.08,18.02904797]
[1756479636572,7.72,208.27,208.09,5.25]
[1756479636774,7.72,208.27,208.11,5.2]
[1756479637166,22.17,208.28,208.07,4.94]
[1756479637370,324.15607621,208.31,208.09,18.02904797]
[1756479637371,7.75,208.26,208.09,18.02904797]
[1756479637871,12.0712,208.26,208.08,23.74]
[1756479638072,18.02904797,208.24,208.0,5.2]
[1756479638273,7.75,208.22,208.0,5.2]
[1756479638467,7.75,208.15,208.0,5.2]
[1756479638966,7.75,208.15,208.0,23.22904797]
[1756479639271,7.75,208.15,208.0,5.2]
[1756479639477,12.0736,208.15,208.0,5.2]
[1756479639968,7.75,208.15,208.0,5.2]
[1756479642176,7.75,208.15,208.01,118.82]
[1756479642575,7.75,208.24,208.02,5.2]
[1756479642774,7.75,208.24,208.07,5.2]
[1756479644871,7.75,208.24,208.08,26.96]
[1756479645070,7.75,208.24,208.09,5.2]
[1756479645771,7.75,208.24,208.1,117.5]
[1756479646174,7.75,208.24,208.09,5.2]
[1756479646680,7.75,208.24,208.1,107.22]
[1756479647184,7.75,208.3,208.11,5.2]
[1756479647372,324.15607621,208.31,208.12,135.16]
[1756479647675,7.75,208.3,208.12,135.16]
[1756479648286,7.75,208.3,208.13,5.2]
[1756479648988,7.75,208.3,208.16,5.2]
[1756479649587,7.75,208.36,208.16,5.2]
[1756479649984,7.75,208.36,208.21,5.2]
[1756479650283,7.75,208.36,208.22,100.76]
[1756479650687,7.75,208.42,208.26,5.2]
[1756479651587,7.75,208.42,208.27,134.78]
[1756479651886,12.90198353,208.48,208.28,5.2]
[1756479652685,7.75,208.48,208.28,5.2]
[1756479652993,7.75,208.48,208.3,5.2]
[1756479653192,7.75,208.48,208.31,5.2]
[1756479653491,7.75,208.48,208.35,18.02904797]
[1756479653687,135.82550811,208.53,208.36,5.2]
[1756479653891,135.82550811,208.53,208.37,10.24]
[1756479654287,135.82550811,208.53,208.36,5.2]
[1756479654790,135.82550811,208.53,208.37,10.22]
[1756479654981,135.82550811,208.53,208.38,5.2]
[1756479654982,7.75,208.53,208.38,5.2]
[1756479655188,7.75,208.6,208.42,5.2]
[1756479655992,7.75,208.6,208.43,115.7]
[1756479656196,7.75,208.6,208.44,5.2]
[1756479657299,4.3134,208.64,208.38,181.48835945]
[1756479657300,7.75,208.64,208.47,5.2]
[1756479657488,7.75,208.64,208.48,20.82]
[1756479657687,7.75,208.64,208.49,28.3]
[1756479657891,7.75,208.64,208.47,5.2]
[1756479658388,7.75,208.64,208.48,20.78]
[1756479658794,12.0634,208.64,208.48,20.78]
[1756479659296,7.75,208.64,208.48,20.78]
[1756479659790,7.75,208.64,208.48,28.22]
[1756479660093,12.0634,208.64,208.47,40.48]
[1756479660393,7.75,208.64,208.47,5.2]
[1756479660793,4.3135,208.63,208.47,5.2]
[1756479661093,7.75,208.64,208.44,50.64]
[1756479661094,7.75,208.65,208.44,66.32]
[1756479661293,7.75,208.6,208.44,66.32]
[1756479661492,7.75,208.6,208.39,139.7]
[1756479661493,7.75,208.53,208.39,139.7]
[1756479661693,7.75,208.5,208.26,5.2]
[1756479661992,7.75,208.48,208.26,5.2]
[1756479662193,7.75,208.48,208.3,5.2]
[1756479662394,7.75,208.48,208.35,5.2]
[1756479662696,7.75,208.48,208.3,32.72]
[1756479662894,7.75,208.48,208.3,25.1]
[1756479663096,7.75,208.48,208.31,5.2]
[1756479663489,12.0667,208.48,208.31,5.2]
[1756479663693,7.75,208.48,208.31,15.48]
[1756479663895,7.75,208.48,208.31,5.2]
[1756479664100,18.02904797,208.41,208.16,5.2]
[1756479664300,7.75,208.4,208.16,5.2]
[1756479664499,7.75,208.34,208.16,5.2]
[1756479664698,4.3209,208.28,208.16,5.2]
[1756479664899,12.0709,208.28,208.14,14.84]
[1756479665094,7.75,208.28,208.14,14.84]
[1756479666198,7.75,208.35,208.15,5.2]
[1756479666697,7.75,208.35,208.16,135.38]
[1756479667800,7.75,208.35,208.17,5.21]
[1756479668000,7.75,208.35,208.13,53.9]
[1756479668203,7.8,208.35,208.13,53.9]
[1756479668393,18.02904797,208.32,208.13,53.9]
[1756479668593,7.8,208.29,208.08,322.44]
[1756479668794,7.8,208.26,208.08,322.44]
[1756479669002,4.3213,208.25,208.08,322.44]
[1756479669200,7.8,208.2,208.01,5.21]
[1756479669402,7.8,208.18,208.01,5.21]
[1756479671710,7.8,208.16,207.97,185.06770624]
[1756479672005,43.52,208.16,207.97,185.06770624]
[1756479672207,51.39280116,208.15,207.94,5.21]
[1756479672699,7.8,208.13,207.94,5.21]
[1756479675402,7.8,208.11,207.94,5.21]
[1756479675604,135.1,208.13,207.9,5.21]
[1756479675810,7.8,208.14,207.93,5.21]
[1756479677801,7.8,208.14,207.94,52.56]
[1756479678202,7.8,208.14,207.95,5.22]
[1756479678709,7.8,208.14,207.95,60.56]
[1756479679209,7.8,208.14,207.96,5.22]
[1756479679605,528.0,208.45,207.95,55.34]
[1756479679606,7.8,208.27,208.03,29.17280116]
[1756479679907,7.8,208.27,208.09,5.22]
[1756479680112,7.8,208.27,208.11,5.22]
[1756479680309,322.82,208.31,208.11,5.22]
[1756479680506,7.8,208.33,208.13,29.17280116]
[1756479680706,7.8,208.33,208.14,5.22]
[1756479681705,7.8,208.38,208.14,5.22]
[1756479682114,12.1188,208.38,208.14,140.28]
[1756479682313,7.8,208.38,208.14,140.28]
[1756479682707,7.8,208.38,208.15,5.22]
[1756479683104,142.8,208.38,208.15,5.22]
[1756479683511,135.0,208.38,208.16,134.9]
[1756479683817,7.8,208.37,208.16,134.9]
[1756479684109,135.0,208.38,208.15,140.04]
[1756479684110,4.3198,208.33,208.15,140.04]
[1756479684313,22.22,208.32,208.09,5.22]
[1756479684609,7.8,208.32,208.09,5.22]
[1756479684811,7.8,208.32,208.1,29.17280116]
[1756479685007,7.8,208.32,208.11,5.22]
[1756479686014,7.8,208.32,208.12,113.78]
[1756479686410,366.41280116,208.43,208.15,5.22]
[1756479686614,142.74,208.42,208.15,5.22]
[1756479687115,7.8,208.37,208.15,5.22]
[1756479687616,43.59280116,208.33,208.08,5.22]
[1756479687816,142.8,208.32,208.08,5.22]
[1756479688211,157.22,208.32,208.08,5.22]
[1756479688412,7.8,208.27,208.08,5.22]
[1756479689314,4.3212,208.26,208.02,5.22]
[1756479689529,7.8,208.22,208.02,5.22]
[1756479689820,7.8,208.17,208.02,5.22]
[1756479690318,7.8,208.17,208.01,322.74]
[1756479690319,7.8,208.15,208.01,322.74]
[1756479690915,4.3233,208.16,207.99,182.32572452]
[1756479691116,7.8,208.15,207.99,182.32572452]
[1756479691316,25.67242416,208.15,207.99,182.32572452]
[1756479691618,25.67242416,208.15,207.95,140.02]
[1756479691619,7.8,208.13,207.95,140.02]
[1756479692721,7.8,208.11,207.95,5.22]
[1756479694922,7.8,208.09,207.89,139.62]
[1756479695315,7.8,208.09,207.9,5.22]
[1756479695510,7.8,208.18,207.94,5.22]
[1756479696416,7.8,208.18,207.98,17.87242416]
[1756479696716,7.8,208.18,207.99,74.96]
[1756479697423,7.8,208.18,208.0,5.22]
[1756479697612,7.8,208.18,208.04,5.22]
[1756479698420,7.8,208.18,208.04,49.38]
[1756479698723,7.8,208.18,208.04,5.22]
[1756479698912,7.8,208.18,208.0,63.88]
[1756479699117,7.8,208.18,207.99,27.16]
[1756479699624,7.8,208.18,207.99,5.22]
[1756479700223,7.07,208.17,207.93,5.22]
[1756479700421,7.07,208.12,207.93,5.22]
[1756479700620,32.03,208.12,207.93,5.22]
[1756479701219,7.07,208.12,207.93,5.22]
[1756479701723,7.07,208.12,207.98,5.22]
[1756479703325,14.42,208.15,207.93,98.32]
[1756479703721,21.49,208.14,207.92,5.22]